bitfinex/quotes_ETHUSD_20240820
["timestamp","ask_amount","ask_price","bid_price","bid_amount"]
[1724195402329,0.51555569,2593.5,2593.1,5.53137]
[1724195402481,0.51555569,2593.5,2593.2,0.938776]
[1724195402680,0.51555569,2593.5,2593.1,5.53137]
[1724195402681,0.51555569,2593.5,2593.1,1.675]
[1724195402889,0.51555569,2593.5,2593.0,3.85639]
[1724195405217,0.51555569,2593.5,2593.0,7.71284]
[1724195405629,0.51555569,2593.5,2593.0,3.85639]
[1724195406146,0.51555569,2593.5,2593.1,1.675]
[1724195408930,0.51555569,2593.5,2593.0,3.85639]
[1724195409114,9.7086,2593.4,2592.6,3.85704]
[1724195409293,9.7086,2593.4,2592.6,6.46682]
[1724195409621,9.7086,2593.2,2592.7,3.85697]
[1724195410203,0.51529764,2593.1,2592.7,3.85697]
[1724195410520,0.51529764,2593.1,2592.8,1.032379]
[1724195411509,0.51529764,2593.1,2592.8,2.707379]
[1724195416030,0.51529764,2593.1,2592.8,6.564189]
[1724195418035,0.51529764,2593.1,2592.8,2.707379]
[1724195418219,0.51529764,2593.1,2592.8,1.675]
[1724195420060,0.51529764,2593.1,2592.6,4.79179]
[1724195420336,0.51529764,2593.1,2592.7,1.675]
[1724195422614,0.51529764,2593.1,2592.7,5.53196]
[1724195426308,9.7086,2593.2,2592.7,5.53196]
[1724195426539,0.5144866,2593.0,2592.7,6.564335]
[1724195426700,9.7086,2593.2,2592.7,6.564335]
[1724195426906,0.5144866,2592.9,2592.7,6.564335]
[1724195427237,9.7086,2593.2,2592.7,6.564335]
[1724195427737,0.5144866,2593.1,2592.7,6.564335]
[1724195427937,0.5144866,2593.1,2592.8,1.1356125]
[1724195429309,0.5144866,2593.1,2592.9,1.675]
[1724195429841,0.5145235,2593.0,2592.8,1.1356125]
[1724195430047,9.0363,2593.2,2592.6,6.46677]
[1724195430344,0.5145235,2592.9,2592.6,10.32382]
[1724195430512,9.0363,2593.2,2592.6,6.46677]
[1724195430841,9.0363,2593.2,2592.7,0.646677]
[1724195431055,0.5145235,2593.1,2592.7,0.646677]
[1724195431924,0.5145235,2593.1,2592.6,3.85699]
[1724195432125,0.5145235,2593.1,2591.9,12.27]
[1724195432126,10.7113,2593.0,2592.2,3.85764]
[1724195432505,9.3065,2592.8,2592.2,3.85764]
[1724195433123,9.3065,2592.8,2592.3,1.675]
[1724195433447,9.2538,2592.6,2592.2,3.85764]
[1724195433657,9.2538,2592.6,2592.0,7.71585]
[1724195433852,0.55417784,2592.5,2591.9,3.85815]
[1724195434044,9.4387,2592.4,2591.9,5.53315]
[1724195434760,0.55417784,2592.3,2591.9,5.53315]
[1724195436314,9.2569,2592.2,2591.9,3.85815]
[1724195436522,9.2569,2592.2,2591.9,6.30479]
[1724195436716,0.55417784,2592.1,2591.9,6.30479]
[1724195438129,9.4046,2592.4,2591.9,6.30479]
[1724195438759,0.55417784,2592.3,2591.9,6.30479]
[1724195438947,0.55417784,2592.3,2592.0,3.85798]
[1724195441050,0.55417784,2592.3,2592.0,7.71591]
[1724195441253,0.55417784,2592.3,2592.0,3.85793]
[1724195441947,0.55417784,2592.3,2592.0,7.71587]
[1724195442742,0.55417784,2592.3,2592.0,8.732121]
[1724195442989,0.55417784,2592.3,2592.0,8.732101]
[1724195443306,0.55417784,2592.3,2592.0,8.732091]
[1724195444051,0.55417784,2592.3,2592.0,4.874171]
[1724195444258,0.55417784,2592.3,2592.0,8.732111]
[1724195444444,0.55417784,2592.3,2592.0,4.874171]
[1724195444808,0.55417784,2592.3,2592.0,8.732091]
[1724195448242,0.55417784,2592.3,2592.1,3.85784]
[1724195448658,0.55417784,2592.3,2592.0,4.874171]
[1724195448855,0.55417784,2592.3,2592.0,3.85792]
[1724195449948,0.55417784,2592.3,2591.8,3.85822]
[1724195449949,9.3814,2592.2,2591.8,3.85822]
[1724195450152,9.3814,2592.2,2591.6,3.9456555]
[1724195450153,11.0564,2592.2,2591.6,3.9456555]
[1724195450352,11.0564,2592.2,2591.6,0.0871355]
[1724195450353,9.5346,2591.9,2591.6,0.0871355]
[1724195450775,0.55348911,2591.8,2591.6,0.0871355]
[1724195452721,9.5346,2591.7,2591.6,0.0871355]
[1724195452989,10.08787379,2591.7,2591.6,0.0871355]
[1724195461412,13.08787379,2591.7,2591.6,0.0871355]
[1724195461997,13.53167379,2591.7,2591.6,0.0871355]
[1724195466177,17.39014379,2591.7,2591.6,0.0871355]
[1724195466520,21.79861379,2591.7,2591.6,0.0871355]
[1724195468280,17.94014379,2591.7,2591.6,0.0871355]
[1724195468990,21.79861379,2591.7,2591.6,0.0871355]
[1724195473323,3.85959,2591.0,2590.0,17.27166905]
[1724195473484,1.675,2590.6,2590.0,11.83059691]
[1724195473682,9.2327,2590.7,2590.0,11.83059691]
[1724195474116,3.55163043,2590.6,2590.0,11.83059691]
[1724195474283,3.55163043,2590.6,2590.1,1.73667069]
[1724195475813,0.55163043,2590.6,2590.5,10.7456]
[1724195476186,5.53437,2591.1,2590.3,10.7456]
[1724195476386,0.55157499,2591.0,2590.3,9.0706]
[1724195476684,0.55157499,2591.0,2590.3,10.70491107]
[1724195479324,0.55157499,2591.0,2590.3,12.37991107]
[1724195479897,9.7375,2590.9,2590.3,10.70491107]
[1724195480119,3.0,2590.8,2590.3,9.0706]
[1724195480325,3.55168585,2590.8,2590.1,10.906]
[1724195481099,3.55168585,2590.8,2590.1,9.231]
[1724195481296,1.675,2590.5,2589.7,3.86132]
[1724195481498,1.675,2590.5,2589.8,9.231]
[1724195481499,11.4125,2590.5,2589.8,9.231]
[1724195481819,3.55168585,2590.4,2589.9,1.476732]
[1724195482227,3.55168585,2590.4,2589.8,9.231]
[1724195482389,3.55168585,2590.4,2589.1,9.231]
[1724195482390,9.7375,2589.8,2589.1,9.231]
[1724195482586,1.675,2589.7,2589.1,9.231]
[1724195482814,0.55156267,2589.7,2589.1,9.231]
[1724195483386,0.55156267,2589.7,2589.1,13.09322]
[1724195483699,3.0,2590.0,2589.4,1.675]
[1724195484239,0.55096521,2589.9,2589.4,1.675]
[1724195484524,0.55096521,2589.9,2589.3,3.86203]
[1724195484827,0.55096521,2589.9,2589.3,3.93913586]
[1724195485193,0.55096521,2589.9,2589.3,3.86193]
[1724195485394,0.55096521,2589.9,2589.4,0.51838012]
[1724195487729,0.55096521,2589.9,2589.3,3.86193]
[1724195489335,0.55096521,2589.9,2589.4,3.86179]
[1724195489837,0.55096521,2589.9,2589.3,3.86193]
[1724195490631,0.55096521,2589.9,2589.3,7.72388]
[1724195490880,0.55096521,2589.9,2589.4,3.86186]
[1724195491195,0.55096521,2589.9,2589.4,4.76642612]
[1724195491383,0.55096521,2589.9,2589.5,9.15483208]
[1724195491682,0.55096521,2589.9,2589.7,3.86132]
[1724195492036,3.0,2590.2,2589.7,3.86132]
[1724195492236,0.55096521,2590.1,2589.7,3.86132]
[1724195493496,0.55096521,2590.1,2589.7,5.541379]
[1724195493798,0.55096521,2590.1,2589.7,1.680059]
[1724195493951,0.55096521,2590.1,2590.0,3.861]
[1724195494476,0.55063253,2590.1,2590.0,3.861]
[1724195494678,9.4424,2590.8,2590.1,3.86082]
[1724195494873,9.4424,2590.8,2589.9,3.86113]
[1724195494874,0.55063253,2590.7,2589.9,3.86101]
[1724195495081,0.55063253,2590.7,2589.9,5.3184569]
[1724195495282,9.4424,2590.6,2589.9,3.86101]
[1724195495470,0.55076808,2590.5,2589.9,3.86101]
[1724195496187,3.55076808,2590.5,2590.0,3.86099]
[1724195496347,3.55076808,2590.5,2590.0,0.7722]
[1724195496549,3.55076808,2590.5,2589.9,3.86101]
[1724195496992,3.55076808,2590.5,2589.9,7.72207]
[1724195499048,3.55076808,2590.5,2590.0,3.86099]
[1724195501113,3.55076808,2590.5,2590.1,3.86085]
[1724195501352,0.55076808,2590.5,2590.4,7.7208]
[1724195501503,0.55076808,2590.5,2590.4,5.950828]
[1724195501828,9.1688,2591.0,2590.4,2.090428]
[1724195501994,9.1688,2591.0,2590.5,3.86025]
[1724195502195,0.53265215,2590.9,2590.5,3.86025]
[1724195502403,0.53265215,2590.9,2590.4,3.8604]
[1724195502593,3.53265215,2590.9,2590.4,3.86038]
[1724195503706,3.53265215,2590.9,2590.5,3.86024]
[1724195506161,3.53265215,2590.9,2590.6,3.86007]
[1724195506544,3.0,2590.9,2590.5,3.86018]
[1724195506750,3.0,2590.9,2590.5,7.72036]
[1724195507050,0.532864,2590.8,2590.5,7.72036]
[1724195507253,0.532864,2590.8,2590.6,3.86006]
[1724195509842,0.532864,2590.8,2590.5,3.86018]
[1724195510061,0.532864,2590.8,2590.2,9.3228]
[1724195510257,0.532864,2590.8,2590.6,3.86008]
[1724195511672,0.53296367,2590.7,2590.6,3.86008]
[1724195511842,12.5415,2591.3,2590.6,3.86008]
[1724195512029,0.53296367,2591.2,2590.6,3.86002]
[1724195512462,9.7005,2591.1,2590.4,3.8603]
[1724195512625,3.53332502,2591.0,2590.4,3.8603]
[1724195513334,3.53332502,2591.0,2590.4,7.72058]
[1724195513564,3.53332502,2591.0,2590.5,3.86023]
[1724195515369,3.53332502,2591.0,2590.4,3.86028]
[1724195515548,3.53332502,2591.0,2590.4,7.72058]
[1724195516153,3.53332502,2591.0,2590.4,7.7206]
[1724195516502,3.53332502,2591.0,2590.4,9.3986]
[1724195516861,3.53332502,2591.0,2590.5,3.86024]
[1724195523093,3.53332502,2591.0,2590.6,5.5381]
[1724195526204,3.53332502,2591.0,2590.6,9.39813]
[1724195526366,0.53332502,2591.0,2590.8,5.53777]
[1724195527109,0.5333001,2590.9,2590.8,5.53777]
[1724195527479,9.6655,2591.4,2590.8,1.678]
[1724195527685,10.5233873,2591.3,2590.6,5.53801]
[1724195528216,10.5233873,2591.3,2590.7,3.85988]
[1724195529395,11.6766,2591.2,2590.4,5.53829]
[1724195529722,9.9986,2591.0,2590.4,5.53829]
[1724195530125,9.9986,2591.0,2590.3,3.86055]
[1724195530448,9.9986,2590.8,2590.3,3.86055]
[1724195530641,9.9986,2590.8,2590.2,1.678]
[1724195530927,0.5333873,2590.7,2590.1,7.40896905]
[1724195531132,10.5319873,2590.7,2590.1,7.40896905]
[1724195531716,10.5319873,2590.7,2590.1,11.26979905]
[1724195532335,10.5319873,2590.7,2590.2,5.53867]
[1724195532626,10.5319873,2590.7,2590.3,3.86054]
[1724195532929,10.5319873,2590.7,2590.2,3.86062]
[1724195532930,9.9986,2590.7,2590.2,3.86059]
[1724195533431,0.53320043,2590.6,2590.2,3.86059]
[1724195533739,0.53320043,2590.6,2590.2,6.1269828]
[1724195533896,0.53320043,2590.6,2590.3,3.86054]
[1724195535571,0.53320043,2590.6,2590.3,3.86052]
[1724195535725,0.53320043,2590.6,2590.5,3.86025]
[1724195536070,9.4396,2591.3,2590.7,3.85986]
[1724195536363,3.53320043,2591.2,2590.8,3.85981]
[1724195536572,3.53320043,2591.2,2590.8,4.631769]
[1724195536768,0.53320043,2591.2,2591.0,3.85949]
[1724195537143,9.4396,2591.3,2591.0,3.85949]
[1724195537345,0.53315061,2591.1,2591.0,3.85949]
[1724195537544,9.4396,2591.3,2591.0,3.85949]
[1724195537758,0.53323159,2591.1,2590.9,3.85966]
[1724195538066,0.53323159,2591.0,2590.8,3.85979]
[1724195538289,9.4396,2591.3,2590.8,4.6317]
[1724195538435,0.5333873,2591.2,2590.8,7.71945]
[1724195538637,9.4396,2591.3,2590.8,7.71945]
[1724195538837,0.5333873,2591.2,2590.8,7.71945]
[1724195539037,9.4396,2591.3,2590.8,7.71945]
[1724195539271,0.5333873,2591.2,2590.8,7.71945]
[1724195539452,9.4396,2591.3,2590.8,3.85972]
[1724195539634,0.5333873,2591.2,2590.8,3.85972]
[1724195539830,9.4396,2591.3,2590.8,7.71945]
[1724195540028,0.5333873,2591.2,2590.8,3.85972]
[1724195540232,9.4396,2591.3,2590.8,7.71945]
[1724195540438,0.5333873,2591.2,2590.8,7.71945]
[1724195540748,9.4396,2591.3,2590.8,3.85972]
[1724195540944,0.5333873,2591.1,2590.8,3.85972]
[1724195541149,9.4396,2591.3,2590.8,3.85972]
[1724195541446,0.5333873,2591.2,2590.8,3.85972]
[1724195541654,9.4396,2591.3,2590.8,7.71945]
[1724195541832,0.5333873,2591.2,2590.8,3.85972]
[1724195542038,9.4396,2591.3,2590.8,9.925272]
[1724195542277,9.2684,2591.9,2591.2,3.85914]
[1724195542641,9.2684,2591.9,2591.1,3.85936]
[1724195543588,3.0,2591.8,2591.1,7.71872]
[1724195543952,3.0,2591.8,2591.2,3.85916]
[1724195544155,3.0,2591.8,2591.3,3.93615014]
[1724195544459,3.0,2591.8,2591.4,3.85883]
[1724195547259,3.0,2591.8,2591.3,3.85897]
[1724195550592,3.0,2591.8,2591.3,3.85896]
[1724195550797,3.0,2591.8,2591.3,7.71794]
[1724195551381,0.53413456,2591.7,2591.3,7.71794]
[1724195551707,3.0,2591.8,2591.3,7.71794]
[1724195551890,0.53413456,2591.7,2591.3,7.71794]
[1724195552092,3.0,2591.8,2591.3,3.85896]
[1724195552280,0.53413456,2591.7,2591.3,3.85896]
[1724195552484,3.0,2591.8,2591.3,3.85896]
[1724195552658,0.53413456,2591.7,2591.3,3.85896]
[1724195552863,3.0,2591.8,2591.3,3.85896]
[1724195553066,0.53413456,2591.7,2591.3,3.85896]
[1724195553364,3.0,2591.8,2591.3,3.85896]
[1724195553560,0.53413456,2591.6,2591.3,3.85896]
[1724195553764,3.0,2591.8,2591.4,3.85891]
[1724195553964,0.53413456,2591.5,2591.4,3.85891]
[1724195554160,3.0,2591.8,2591.4,3.85891]
[1724195554365,0.53413456,2591.5,2591.4,3.85891]
[1724195554564,3.0,2591.8,2591.4,3.85891]
[1724195554766,0.53413456,2591.5,2591.4,3.85891]
[1724195554965,3.0,2591.8,2591.4,4.63072]
[1724195555164,7.27,2592.1,2591.3,9.2352]
[1724195555165,9.9041,2592.1,2591.3,9.2352]
[1724195555388,9.9041,2592.1,2591.7,3.85838]
[1724195556591,3.0,2592.0,2591.7,3.85838]
[1724195558098,3.0,2592.0,2591.6,3.85849]
[1724195558487,3.0,2592.0,2591.6,7.71703]
[1724195558704,3.0,2592.0,2591.6,3.85849]
[1724195559788,3.0,2592.0,2591.4,3.85883]
[1724195559995,3.0,2592.0,2591.4,3.85882]
[1724195562207,3.0,2592.0,2591.4,7.71766]
[1724195562714,3.0,2592.0,2591.5,3.85875]
[1724195563914,3.0,2592.0,2591.6,3.85859]
[1724195564069,3.0,2592.0,2591.6,7.71713]
[1724195564404,3.0,2592.0,2591.6,4.630253]
[1724195564610,3.0,2592.0,2591.6,3.85854]
[1724195564810,3.0,2592.0,2591.8,3.85831]
[1724195565010,3.0,2592.0,2591.9,3.85817]
[1724195565209,9.336,2592.3,2591.9,3.85817]
[1724195565210,3.0,2592.2,2591.9,3.85817]
[1724195565467,3.0,2592.2,2591.9,3.85809]
[1724195565728,9.336,2592.3,2591.9,3.85809]
[1724195566317,9.336,2592.3,2592.0,3.85801]
[1724195566470,0.53460766,2592.2,2592.0,7.71582]
[1724195566690,0.53460766,2592.2,2592.0,3.85791]
[1724195566890,0.53460766,2592.2,2592.1,3.85787]
[1724195567103,9.43764712,2592.6,2592.2,3.85771]
[1724195567701,9.43764712,2592.6,2592.1,3.85787]
[1724195568290,3.0,2592.5,2592.1,3.85787]
[1724195569701,9.43764712,2592.6,2592.2,3.8577]
[1724195570097,9.43764712,2592.6,2592.1,0.385793]
[1724195570327,9.43764712,2592.6,2592.0,7.71582]
[1724195570629,9.43764712,2592.6,2592.1,3.85784]
[1724195572897,9.43764712,2592.6,2592.1,3.93498975]
[1724195573320,9.43764712,2592.6,2592.1,3.85784]
[1724195573595,9.43764712,2592.6,2592.2,3.85771]
[1724195576925,0.00724712,2592.6,2592.3,3.85756]
[1724195577294,0.00724712,2592.6,2592.3,5.53356]
[1724195578417,0.00724712,2592.6,2592.3,3.85756]
[1724195579130,0.00724712,2592.6,2592.4,3.8574]
[1724195579335,0.00724712,2592.6,2592.5,3.85728]
[1724195580035,0.00724712,2592.6,2592.5,18.399828]
[1724195580605,9.9597,2592.5,2592.1,3.85777]
[1724195580802,9.9597,2592.5,2591.7,13.77216]
[1724195581003,0.53531084,2592.4,2591.9,3.85807]
[1724195582653,0.53531084,2592.4,2592.0,3.85801]
[1724195583300,0.53531084,2592.4,2591.9,3.85815]
[1724195585707,0.53531084,2592.4,2592.1,3.85774]
[1724195585924,0.53531084,2592.4,2592.1,7.71554]
[1724195586110,0.53531084,2592.4,2592.2,3.85772]
[1724195588837,0.53531084,2592.4,2592.2,7.71536]
[1724195589227,0.53531084,2592.4,2592.2,7.71528]
[1724195589600,0.53531084,2592.4,2592.2,3.85764]
[1724195593564,0.53531084,2592.4,2592.0,3.85791]
[1724195593733,0.53531084,2592.4,2592.0,7.71583]
[1724195593935,0.53531084,2592.4,2592.1,3.85786]
[1724195595564,0.53531084,2592.4,2592.2,3.85765]
[1724195595764,9.8256,2592.7,2592.2,3.85765]
[1724195595765,3.0,2592.6,2592.2,3.85765]
[1724195595987,3.0,2592.6,2592.1,7.71565]
[1724195596184,0.53517394,2592.5,2592.1,3.85779]
[1724195596335,9.8256,2592.4,2592.1,3.85779]
[1724195596945,0.53517394,2592.3,2592.1,3.85779]
[1724195598831,0.53517394,2592.3,2592.1,7.71558]
[1724195599033,0.53517394,2592.3,2592.1,3.85779]
[1724195600444,0.53517394,2592.3,2592.0,5.53402]
[1724195604057,0.53517394,2592.3,2592.1,3.85784]
[1724195604406,0.53517394,2592.3,2592.2,1.676]
[1724195604608,0.53517394,2592.3,2592.2,5.53372]
[1724195604893,0.53521127,2592.3,2592.2,5.53372]
[1724195605109,9.0729,2592.6,2592.2,5.53372]
[1724195605246,0.53521127,2592.3,2592.2,5.53372]
[1724195605450,9.0729,2592.6,2592.2,2.68428636]
[1724195605653,0.53521127,2592.3,2592.2,1.676]
[1724195605894,9.0729,2592.6,2592.2,1.676]
[1724195606216,0.53521127,2592.3,2592.2,3.85772]
[1724195606518,9.8928,2592.9,2592.2,5.53372]
[1724195606829,3.0,2593.0,2592.2,5.53372]
[1724195606830,0.53521127,2592.8,2592.2,5.53372]
[1724195606989,9.8928,2592.7,2592.2,5.53372]
[1724195607306,3.53521127,2592.6,2592.2,5.53372]
[1724195607457,3.53521127,2592.6,2592.1,3.85775]
[1724195607657,9.8928,2592.5,2592.0,5.53392]
[1724195608052,0.53521127,2592.4,2592.0,5.53392]
[1724195610204,0.53521127,2592.4,2592.0,1.676]
[1724195614758,0.53521127,2592.4,2592.0,5.53401]
[1724195618461,0.53521127,2592.4,2592.0,9.39196]
[1724195618655,0.53521127,2592.4,2592.0,10.4688776]
[1724195620605,0.53521127,2592.4,2592.1,3.85786]
[1724195622890,0.53521127,2592.4,2592.0,2.7529176]
[1724195622891,0.53521127,2592.4,2592.3,3.85757]
[1724195623208,12.9489,2592.6,2592.4,3.85742]
[1724195623578,9.9489,2592.6,2592.4,3.85742]
[1724195623778,9.9489,2593.0,2592.5,4.242952]
[1724195624316,9.9489,2593.0,2592.5,3.85721]
[1724195624890,9.9489,2593.0,2592.4,9.39068]
[1724195625283,9.9489,2593.0,2592.4,5.53333]
[1724195625677,3.0,2592.9,2592.4,5.53333]
[1724195625873,9.9489,2592.8,2592.4,3.85733]
[1724195626269,0.53533571,2592.7,2592.4,3.85733]
[1724195626512,9.9489,2592.8,2592.4,3.85733]
[1724195626682,0.53533571,2592.6,2592.4,3.85733]
[1724195626886,9.9489,2592.8,2592.4,3.85733]
[1724195627080,0.53533571,2592.5,2592.4,3.85733]
[1724195627316,9.9489,2592.8,2592.4,4.796423]
[1724195627486,0.53533571,2592.5,2592.4,3.85733]
[1724195627677,9.9489,2592.8,2592.4,3.85733]
[1724195627879,0.53533571,2592.5,2592.4,3.85733]
[1724195628106,9.9489,2592.8,2592.4,3.85733]
[1724195628715,0.53533571,2592.7,2592.4,3.85733]
[1724195628916,9.9489,2592.8,2592.4,3.85733]
[1724195629212,0.53533571,2592.6,2592.4,3.85733]
[1724195629450,0.53533571,2592.5,2592.4,3.85733]
[1724195629615,9.9489,2592.8,2592.4,3.85733]
[1724195629815,0.53533571,2592.7,2592.4,3.85733]
[1724195630045,9.9489,2592.8,2592.4,3.85733]
[1724195630339,0.53533571,2592.6,2592.4,3.85733]
[1724195630653,0.53533571,2592.5,2592.4,3.85733]
[1724195630815,9.9489,2592.8,2592.4,3.85733]
[1724195631143,0.53533571,2592.7,2592.4,3.85733]
[1724195631645,0.53533571,2592.6,2592.4,3.85733]
[1724195631798,9.9489,2592.8,2592.4,3.85733]
[1724195632000,0.53533571,2592.7,2592.3,3.85753]
[1724195632243,9.9489,2592.8,2592.3,3.85753]
[1724195632443,0.53533571,2592.6,2592.3,3.85753]
[1724195632652,9.9489,2592.8,2592.3,3.85753]
[1724195632849,0.53533571,2592.5,2592.3,3.85753]
[1724195633138,9.9489,2592.8,2592.3,4.796643]
[1724195633301,0.53533571,2592.4,2592.3,3.85753]
[1724195633504,9.9489,2592.8,2592.3,3.85753]
[1724195633826,9.9489,2592.8,2592.2,5.5336]
[1724195633827,9.9489,2592.8,2592.4,3.85742]
[1724195636400,9.9489,2592.8,2592.3,3.85757]
[1724195637256,9.9489,2592.8,2592.4,3.85741]
[1724195637836,9.9489,2592.8,2592.2,9.39119]
[1724195638056,9.9489,2592.8,2592.2,5.53359]
[1724195638415,9.9489,2592.8,2592.3,3.85747]
[1724195640364,1.676,2592.6,2592.0,7.40896905]
[1724195640551,9.306,2592.5,2592.0,7.40896905]
[1724195641473,0.53540415,2592.4,2592.0,7.40896905]
[1724195642239,0.53540415,2592.4,2592.0,15.12491905]
[1724195642470,0.53540415,2592.4,2592.0,16.80091905]
[1724195643132,0.53540415,2592.4,2592.0,12.94289905]
[1724195643531,0.53540415,2592.4,2592.1,3.85786]
[1724195643730,0.53540415,2592.4,2592.0,12.94289905]
[1724195643972,0.53540415,2592.4,2592.0,19.01455896]
[1724195644377,0.53540415,2592.4,2592.0,19.01453896]
[1724195644665,0.53540415,2592.4,2592.0,15.15660896]
[1724195645128,0.53540415,2592.4,2592.0,7.74763991]
[1724195645856,0.53540415,2592.4,2592.0,11.60557991]
[1724195648274,0.53540415,2592.4,2592.1,3.85787]
[1724195650683,0.53540415,2592.4,2592.0,9.92953991]
[1724195651349,0.53540415,2592.4,2592.1,3.85785]
[1724195658857,0.53540415,2592.4,2592.1,4.85079599]
[1724195660502,0.53540415,2592.4,2592.1,3.85785]
[1724195662060,0.53540415,2592.4,2592.0,3.8579]
[1724195662262,9.0881,2592.3,2592.0,3.8579]
[1724195662578,9.0881,2592.3,2591.7,3.85835]
[1724195662579,9.62330508,2592.3,2591.7,3.85835]
[1724195662978,9.62330508,2592.3,2591.8,3.85831]
[1724195663375,9.62330508,2592.3,2591.7,3.85846]
[1724195663588,3.0,2592.2,2591.7,3.85846]
[1724195663792,9.0881,2592.1,2591.7,3.85846]
[1724195664180,0.53520508,2592.0,2591.7,3.85846]
[1724195664377,0.53520508,2592.0,2591.6,3.85853]
[1724195664579,9.62330508,2592.0,2591.7,3.85846]
[1724195664902,0.53520508,2591.9,2591.7,7.71685]
[1724195665262,0.53520508,2591.9,2591.7,3.85839]
[1724195672339,0.53520508,2591.9,2591.8,19.11624]
[1724195672542,9.1289,2592.7,2592.2,3.85765]
[1724195672836,9.1289,2592.7,2592.2,9.39129]
[1724195673036,9.1289,2592.7,2592.3,3.85754]
[1724195674026,9.1289,2592.7,2592.1,3.85773]
[1724195674619,3.0,2592.6,2592.1,3.85773]
[1724195677245,3.0,2592.6,2592.0,1.676]
[1724195677449,9.787,2592.5,2592.0,1.676]
[1724195682261,9.787,2592.5,2592.0,5.53401]
[1724195682562,9.787,2592.5,2592.0,7.445578]
[1724195686369,0.53489392,2592.4,2592.0,7.445578]
[1724195688947,0.53489392,2592.4,2592.0,5.769578]
[1724195689145,0.53489392,2592.4,2592.0,5.53401]
[1724195693788,0.53489392,2592.4,2592.3,3.85757]
[1724195693953,0.53489392,2592.4,2592.3,7.71514]
[1724195694288,9.155,2592.7,2592.4,3.85736]
[1724195697473,12.7333,2592.9,2592.4,3.85736]
[1724195699675,3.0,2592.9,2592.6,1.676]
[1724195699872,3.0,2593.1,2592.6,1.676]
[1724195700108,3.0,2593.1,2592.7,3.85695]
[1724195700406,7.27,2593.3,2593.0,1.676]
[1724195700566,1.676,2593.2,2592.0,9.7795]
[1724195700762,1.676,2593.2,2592.3,1.676]
[1724195700763,9.5438,2593.1,2592.3,1.676]
[1724195701067,1.676,2593.0,2592.3,5.75603]
[1724195701265,1.676,2593.0,2592.3,3.85743]
[1724195701266,9.74977163,2592.9,2592.3,3.85743]
[1724195701667,9.74977163,2592.9,2592.1,5.53377]
[1724195701668,3.0,2592.8,2592.1,5.53377]
[1724195701913,3.0,2592.8,2592.1,2.2722239]
[1724195702084,9.74977163,2592.7,2592.0,3.85794]
[1724195702467,3.0,2592.6,2592.0,3.85794]
[1724195702665,9.3595,2592.5,2592.0,3.85794]
[1724195702891,0.53567163,2592.4,2592.0,3.85794]
[1724195703430,0.53567163,2592.4,2591.9,9.08496905]
[1724195703571,9.936,2592.3,2591.9,7.40896905]
[1724195703973,0.53550991,2592.2,2591.9,7.40896905]
[1724195704225,9.936,2592.3,2591.9,7.40896905]
[1724195704383,0.53550991,2592.1,2591.6,3.85852]
[1724195704611,4.676,2592.2,2591.6,7.71706]
[1724195704810,0.53541037,2592.0,2591.7,3.85843]
[1724195705016,9.155,2592.1,2591.7,3.85843]
[1724195705214,0.53541037,2591.9,2591.7,6.473725]
[1724195705529,0.53541037,2591.8,2591.7,6.473725]
[1724195705713,9.155,2592.1,2591.7,6.473725]
[1724195705921,0.53541037,2591.8,2591.7,6.473725]
[1724195706227,9.155,2592.1,2591.7,6.473725]
[1724195706435,0.53541037,2591.8,2591.7,6.473725]
[1724195706600,9.155,2592.1,2591.7,6.473725]
[1724195706795,0.53541037,2591.8,2591.7,6.473725]
[1724195707310,12.6685,2592.3,2591.8,3.85821]
[1724195707510,12.6685,2592.3,2591.9,3.85815]
[1724195707721,3.0,2592.3,2591.9,5.53415]
[1724195708099,3.0,2592.4,2591.9,5.53415]
[1724195709337,4.916,2592.4,2591.9,5.53415]
[1724195710524,4.916,2592.4,2591.9,3.85815]
[1724195710902,4.916,2592.4,2591.7,15.26322]
[1724195711100,4.916,2592.4,2591.8,3.85823]
[1724195714821,4.916,2592.4,2591.9,3.85816]
[1724195715434,4.916,2592.4,2591.9,5.53416]
[1724195716451,0.53509308,2592.3,2591.9,5.53416]
[1724195717056,0.53509308,2592.3,2592.1,5.53383]
[1724195717264,0.53509308,2592.3,2592.2,3.85772]
[1724195719313,0.53509308,2592.3,2592.2,7.71544]
[1724195719861,0.53509308,2592.3,2592.2,17.12694]
[1724195722360,10.14613292,2593.5,2593.2,3.85613]
[1724195722559,10.14613292,2593.5,2593.2,5.53213]
[1724195722560,9.7423,2593.5,2593.2,5.53213]
[1724195722773,9.7423,2593.9,2593.2,5.53213]
[1724195723280,9.7423,2593.9,2593.3,3.85598]
[1724195723929,9.7423,2593.9,2593.4,3.85593]
[1724195724480,3.0,2593.8,2593.2,3.85611]
[1724195724636,3.0,2593.8,2593.3,3.85595]
[1724195726229,10.8974,2593.7,2593.2,3.85611]
[1724195726857,10.8974,2593.7,2593.2,7.71224]
[1724195727191,10.8974,2593.7,2593.2,7.71226]
[1724195727317,10.8974,2593.7,2593.2,3.85611]
[1724195727662,9.2214,2593.7,2593.2,3.85611]
[1724195728960,9.2214,2593.7,2593.2,7.71226]
[1724195729869,0.51878654,2593.6,2593.2,7.71226]
[1724195731870,0.51878654,2593.6,2593.3,3.85608]
[1724195733540,0.51878654,2593.6,2593.2,3.85611]
[1724195734772,0.51878654,2593.6,2593.3,3.85605]
[1724195739015,0.51878654,2593.6,2593.2,3.85611]
[1724195739151,9.4084,2593.5,2593.2,3.85611]
[1724195739350,9.4084,2593.5,2593.3,3.85604]
[1724195739790,0.51878654,2593.4,2593.3,3.85604]
[1724195739998,0.51878654,2593.4,2593.2,3.85611]
[1724195740512,9.4084,2593.3,2592.7,7.40896905]
[1724195740650,1.676,2593.1,2592.7,7.40896905]
[1724195740964,9.0991,2593.0,2592.7,7.40896905]